bitfinex/quotes_BTCUSD_20250408
["timestamp","ask_amount","ask_price","bid_price","bid_amount"]
[1744143181548,0.016,76785.0,76784.0,0.221399]
[1744143181749,0.33462964,76786.0,76783.0,0.208379]
[1744143181908,0.33462964,76786.0,76782.0,0.221405]
[1744143182110,0.224375,76785.0,76781.0,0.208384]
[1744143182320,0.029023,76785.0,76779.0,0.208388]
[1744143182513,0.013024,76778.0,76769.0,0.013026]
[1744143182716,0.013024,76781.0,76774.0,0.013025]
[1744143182921,0.208391,76779.0,76775.0,0.208401]
[1744143183120,0.33464964,76779.0,76775.0,0.208401]
[1744143183659,0.12625864,76779.0,76777.0,0.208395]
[1744143183859,0.007,76785.0,76784.0,0.221399]
[1744143184064,0.12625864,76785.0,76784.0,0.221399]
[1744143184238,0.01,76793.0,76792.0,0.013022]
[1744143184447,0.01,76793.0,76792.0,0.221377]
[1744143185420,0.01,76793.0,76789.0,0.20836]
[1744143185421,0.019,76793.0,76789.0,0.20836]
[1744143185620,0.013023,76782.0,76775.0,0.013025]
[1744143185831,0.33464264,76781.0,76775.0,0.013025]
[1744143186033,0.33464364,76781.0,76777.0,0.208393]
[1744143186238,0.33464364,76781.0,76776.0,0.208393]
[1744143186438,0.221397,76785.0,76780.0,0.208387]
[1744143186638,0.20836,76790.0,76780.0,0.00996467]
[1744143186639,0.208367,76788.0,76780.0,0.00996467]
[1744143186856,0.12625864,76787.0,76781.0,0.013024]
[1744143187061,0.208372,76786.0,76782.0,0.208379]
[1744143187260,0.208375,76785.0,76781.0,0.208383]
[1744143187520,0.20838,76783.0,76779.0,0.208389]
[1744143187932,0.013024,76780.0,76779.0,0.00998129]
[1744143188150,0.208415,76770.0,76766.0,0.208424]
[1744143188551,0.221437,76771.0,76767.0,0.20842]
[1744143189113,0.208433,76764.0,76761.0,0.02271617]
[1744143189291,0.013025,76770.0,76766.0,0.001]
[1744143189489,0.025023,76783.0,76773.0,0.013025]
[1744143189690,0.208384,76781.0,76773.0,0.02279446]
[1744143189990,0.208391,76779.0,76773.0,0.21817446]
[1744143190194,0.208391,76779.0,76775.0,0.208399]
[1744143190391,0.208391,76779.0,76776.0,0.208397]
[1744143191037,0.208394,76778.0,76775.0,0.208399]
[1744143191244,0.208391,76779.0,76776.0,0.208398]
[1744143191603,0.008,76779.0,76777.0,0.208394]
[1744143191804,0.014,76779.0,76777.0,0.208394]
[1744143192023,0.208395,76777.0,76774.0,0.01299559]
[1744143192224,0.33465664,76776.0,76774.0,0.01299559]
[1744143192433,0.014,76779.0,76778.0,0.208393]
[1744143192632,0.014,76779.0,76778.0,0.221417]
[1744143192633,0.008,76779.0,76778.0,0.221417]
[1744143193658,0.34,76784.0,76782.0,0.208379]
[1744143193854,0.12625864,76783.0,76782.0,0.208379]
[1744143194064,0.12625864,76783.0,76781.0,0.221407]
[1744143194065,0.013023,76786.0,76781.0,0.208384]
[1744143194268,0.208379,76783.0,76781.0,0.208383]
[1744143194492,0.12625864,76785.0,76782.0,0.208382]
[1744143194663,0.22137,76795.0,76788.0,0.208364]
[1744143194862,0.12625864,76792.0,76791.0,0.208357]
[1744143195101,0.12625864,76792.0,76786.0,0.01299559]
[1744143195322,0.20836,76791.0,76789.0,0.208362]
[1744143195567,0.12625864,76792.0,76789.0,0.208363]
[1744143195804,0.208357,76791.0,76789.0,0.208363]
[1744143196125,0.208357,76791.0,76788.0,0.208365]
[1744143196323,0.208363,76790.0,76786.0,0.01299559]
[1744143196664,0.22138,76791.0,76787.0,0.208368]
[1744143197383,0.33461364,76792.0,76788.0,0.221386]
[1744143197603,0.009,76791.0,76790.0,0.20836]
[1744143197781,0.217358,76791.0,76787.0,0.208366]
[1744143198240,0.20836,76790.0,76788.0,0.208365]
[1744143198518,0.217358,76791.0,76788.0,0.208365]
[1744143198728,0.208358,76791.0,76788.0,0.208365]
[1744143199182,0.217358,76791.0,76788.0,0.208365]
[1744143199376,0.018,76791.0,76790.0,0.001]
[1744143199786,0.226357,76791.0,76790.0,0.001]
[1744143200397,0.018,76791.0,76790.0,0.20936]
[1744143200640,0.018,76791.0,76790.0,0.222382]
[1744143200868,0.01,76793.0,76792.0,0.221377]
[1744143202670,0.016,76793.0,76792.0,0.221377]
[1744143204319,0.016,76793.0,76792.0,0.267377]
[1744143204542,0.0004,76799.0,76798.0,0.221359]
[1744143204750,0.0004,76799.0,76798.0,0.23435459]
[1744143205146,0.0004,76799.0,76798.0,0.28405459]
[1744143205780,0.0144,76799.0,76798.0,0.28505459]
[1744143206241,0.0064,76799.0,76798.0,0.28505459]
[1744143206467,0.0134,76799.0,76798.0,0.28505459]
[1744143207359,0.0074,76799.0,76798.0,0.28405459]
[1744143208015,0.0114,76799.0,76798.0,0.28405459]
[1744143208258,0.0114,76799.0,76798.0,0.33005459]
[1744143208454,0.0114,76799.0,76798.0,0.80607852]
[1744143208657,0.0044,76799.0,76798.0,0.80607852]
[1744143209002,0.0004,76829.0,76826.0,0.221278]
[1744143209171,0.0004,76829.0,76828.0,0.208257]
[1744143209526,0.0004,76829.0,76827.0,0.20826]
[1744143210361,0.34753164,76828.0,76827.0,0.00975356]
[1744143210566,0.208276,76822.0,76818.0,0.22127759]
[1744143210762,0.208276,76822.0,76819.0,0.208281]
[1744143210943,0.221287,76823.0,76820.0,0.208278]
[1744143211139,0.221298,76819.0,76818.0,0.02281522]
[1744143211761,0.221298,76819.0,76818.0,0.00981963]
[1744143211961,0.013018,76811.0,76797.0,0.0458]
[1744143212287,0.208342,76797.0,76793.0,0.013022]
[1744143212462,0.208341,76798.0,76795.0,0.208346]
[1744143212670,0.208352,76793.0,76787.0,0.013023]
[1744143212849,0.221374,76793.0,76787.0,0.013023]
[1744143213048,0.221374,76793.0,76785.0,0.208373]
[1744143213049,0.013022,76790.0,76785.0,0.208373]
[1744143213273,0.208355,76792.0,76785.0,0.208373]
[1744143213481,0.208363,76789.0,76785.0,0.208373]
[1744143213689,0.208363,76789.0,76786.0,0.20837]
[1744143214934,0.013023,76784.0,76783.0,0.11530148]
[1744143215067,0.013022,76789.0,76784.0,0.013023]
[1744143215272,0.208366,76788.0,76785.0,0.208372]
[1744143215610,0.208369,76787.0,76783.0,0.208378]
[1744143215814,0.208369,76787.0,76784.0,0.208375]
[1744143216042,0.013022,76788.0,76784.0,0.208375]
[1744143216363,1.28812354,76941.0,76793.0,0.013022]
[1744143216364,0.013021,76799.0,76793.0,0.013022]
[1744143216569,0.208339,76798.0,76794.0,0.208347]
[1744143216819,0.208335,76800.0,76795.0,0.208345]
[1744143216993,0.01314644,76799.0,76798.0,0.221359]
[1744143217517,0.208314,76807.0,76803.0,0.208325]
[1744143217718,0.12625864,76807.0,76804.0,0.221341]
[1744143217928,0.12625864,76807.0,76804.0,0.00982381]
[1744143218436,0.12625864,76807.0,76803.0,0.208324]
[1744143219035,0.208318,76806.0,76802.0,0.221346]
[1744143219235,0.013019,76806.0,76802.0,0.208327]
[1744143219439,0.01302,76804.0,76797.0,0.208341]
[1744143219645,0.013019,76806.0,76800.0,0.208332]
[1744143219646,0.221339,76805.0,76800.0,0.208332]
[1744143220022,0.208322,76804.0,76800.0,0.208332]
[1744143220423,0.208325,76803.0,76798.0,0.221357]
[1744143220739,0.208325,76803.0,76799.0,0.208335]
[1744143220943,0.208325,76803.0,76800.0,0.001]
[1744143221142,0.208325,76803.0,76799.0,0.208335]
[1744143221357,0.022019,76806.0,76801.0,0.20833]
[1744143221692,0.006,76804.0,76801.0,0.20833]
[1744143222049,0.006,76804.0,76803.0,0.208325]
[1744143222789,0.015,76804.0,76803.0,0.28174059]
[1744143222942,0.01,76807.0,76803.0,0.28174059]
[1744143222943,0.01,76807.0,76806.0,0.221336]
[1744143223144,0.01,76807.0,76806.0,0.35019811]
[1744143223347,0.01,76807.0,76806.0,0.68759464]
[1744143223542,0.208223,76841.0,76806.0,0.68759464]
[1744143223543,0.20821,76846.0,76828.0,0.221273]
[1744143223768,0.208212,76845.0,76828.0,0.23426859]
[1744143224050,0.7233,76854.0,76828.0,0.23426859]
[1744143224051,0.208202,76849.0,76828.0,0.28267152]
[1744143224271,0.34,76853.0,76828.0,0.40632723]
[1744143224447,0.013012,76850.0,76828.0,0.28006859]
[1744143224986,0.208205,76848.0,76828.0,0.28006859]
[1744143225201,0.221221,76846.0,76828.0,0.28006859]
[1744143225359,0.0024,76829.0,76828.0,0.28006859]
[1744143225566,0.0104,76829.0,76828.0,0.28106859]
[1744143225762,0.0084,76829.0,76828.0,0.28106859]
[1744143226172,0.0084,76829.0,76828.0,0.28406859]
[1744143226535,0.0004,76829.0,76828.0,0.29276767]
[1744143227387,0.0004,76829.0,76828.0,0.29476767]
[1744143227729,0.0104,76829.0,76828.0,0.42102631]
[1744143228027,0.0104,76829.0,76828.0,0.41802631]
[1744143228186,0.0104,76829.0,76828.0,0.42102631]
[1744143228731,0.0104,76829.0,76828.0,0.41802631]
[1744143229060,0.0104,76829.0,76828.0,0.29576767]
[1744143229614,0.0104,76829.0,76828.0,0.29176767]
[1744143229829,0.0104,76829.0,76828.0,0.24396767]
[1744143230392,0.0104,76829.0,76828.0,0.24596767]
[1744143230752,0.0104,76829.0,76828.0,0.24396767]
[1744143231158,0.0104,76829.0,76828.0,0.24496767]
[1744143231882,0.0104,76829.0,76828.0,0.24796767]
[1744143232178,0.0104,76829.0,76828.0,0.24496767]
[1744143232340,0.0104,76829.0,76828.0,0.24596767]
[1744143232543,0.0104,76829.0,76828.0,0.24496767]
[1744143233371,0.0114,76829.0,76828.0,0.24496767]
[1744143234158,0.0114,76829.0,76828.0,0.24757075]
[1744143234743,0.0114,76829.0,76828.0,0.24496767]
[1744143237905,0.0114,76829.0,76828.0,0.23195167]
[1744143238600,0.0114,76829.0,76828.0,0.02369467]
[1744143238960,0.232669,76829.0,76828.0,0.02369467]
[1744143239173,0.35892764,76829.0,76828.0,0.001]
[1744143239968,0.34591264,76829.0,76828.0,0.001]
[1744143240169,0.0114,76829.0,76828.0,0.209257]
[1744143240371,0.0114,76829.0,76828.0,0.001]
[1744143240569,0.0114,76829.0,76828.0,0.01056173]
[1744143240751,0.0114,76829.0,76828.0,0.001]
[1744143241357,0.232669,76829.0,76828.0,0.001]
[1744143241714,0.35892764,76829.0,76828.0,0.001]
[1744143241920,0.74652764,76829.0,76828.0,0.001]
[1744143243186,0.208329,76802.0,76799.0,0.208335]
[1744143243482,0.208321,76805.0,76802.0,0.208327]
[1744143243643,0.20832,76805.0,76802.0,0.208327]
[1744143243845,0.20832,76805.0,76801.0,0.01302]
[1744143243846,0.013018,76816.0,76810.0,0.208304]
[1744143244048,0.33454864,76816.0,76813.0,0.208296]
[1744143244271,0.404,76829.0,76813.0,0.208296]
[1744143244272,0.013016,76827.0,76821.0,0.013017]
[1744143244448,0.12625864,76826.0,76821.0,0.013017]
[1744143244654,0.013016,76825.0,76821.0,0.208276]
[1744143244856,0.208271,76823.0,76820.0,0.208278]
[1744143245060,0.12625864,76824.0,76820.0,0.221295]
[1744143245257,0.221273,76828.0,76820.0,0.221295]
[1744143245258,0.1752,76848.0,76828.0,0.208257]
[1744143245443,0.1752,76848.0,76827.0,0.208259]
[1744143245444,0.13665864,76829.0,76827.0,0.208259]
[1744143245644,0.0104,76829.0,76824.0,0.013016]
[1744143246012,0.0104,76829.0,76828.0,0.208257]
[1744143246381,0.0104,76829.0,76828.0,0.221273]
[1744143246581,0.0154,76829.0,76828.0,0.222273]
[1744143246902,0.0104,76829.0,76828.0,0.221273]
[1744143247080,0.0184,76829.0,76828.0,0.221273]
[1744143247281,0.0184,76829.0,76828.0,0.23111979]
[1744143248011,0.0184,76829.0,76828.0,0.23372278]
[1744143248211,0.0184,76829.0,76828.0,0.23111979]
[1744143248412,0.0204,76829.0,76828.0,0.23111979]
[1744143248612,0.0104,76829.0,76828.0,0.23372262]
[1744143249017,0.0154,76829.0,76828.0,0.23372262]
[1744143249211,0.0144,76829.0,76828.0,0.23372262]
[1744143249413,0.0104,76829.0,76828.0,0.23372262]
[1744143249815,0.0104,76829.0,76828.0,0.23672262]
[1744143250271,0.0104,76829.0,76828.0,0.24072262]
[1744143251472,0.0104,76829.0,76828.0,0.41688126]
[1744143251617,0.0104,76829.0,76828.0,0.41427843]
[1744143252233,0.0104,76829.0,76828.0,0.41127843]
[1744143252429,0.0104,76829.0,76828.0,0.40727843]
[1744143252683,0.0114,76829.0,76828.0,0.41227843]
[1744143252829,1e-06,76829.0,76828.0,0.75227843]
[1744143253036,1e-06,76829.0,76828.0,0.75927843]
[1744143253234,0.0004,76859.0,76858.0,0.221187]
[1744143254549,0.0004,76859.0,76851.0,0.208192]
[1744143254766,0.208176,76858.0,76849.0,0.013012]
[1744143255050,0.208176,76858.0,76855.0,0.208183]
[1744143255604,0.20818,76857.0,76852.0,0.03560017]
[1744143255804,0.20818,76857.0,76853.0,0.013011]
[1744143256012,0.218176,76858.0,76855.0,0.208183]
[1744143256411,0.01,76858.0,76855.0,0.208183]
[1744143256613,0.013,76858.0,76855.0,0.209183]
[1744143257041,0.013,76858.0,76856.0,0.208181]
[1744143257234,0.013,76858.0,76857.0,0.208178]
[1744143257556,0.013,76858.0,76856.0,0.221192]
[1744143257749,0.013,76858.0,76857.0,0.208178]
[1744143257914,0.013,76858.0,76856.0,0.221192]
[1744143258715,0.01,76858.0,76857.0,0.208178]
[1744143258936,0.01,76858.0,76857.0,0.221189]
[1744143259138,0.015,76858.0,76857.0,0.221189]
[1744143259796,0.01,76858.0,76857.0,0.221189]
[1744143260204,0.015,76858.0,76857.0,0.222189]
[1744143263715,0.015,76858.0,76857.0,0.014011]
[1744143263928,0.015,76858.0,76857.0,0.222189]
[1744143265376,0.223176,76858.0,76857.0,0.001]
[1744143265579,0.015,76858.0,76857.0,0.001]
[1744143265738,0.015,76858.0,76857.0,0.209178]
[1744143265943,0.015,76858.0,76857.0,0.222189]
[1744143266971,0.81318649,76858.0,76857.0,0.001]
[1744143267176,0.89714704,76858.0,76857.0,0.001]
[1744143267534,0.81318649,76858.0,76857.0,0.001]
[1744143267862,0.52795864,76858.0,76857.0,0.001]
[1744143268070,0.70244564,76858.0,76857.0,0.001]
[1744143268473,0.208184,76855.0,76852.0,0.208192]
[1744143268672,0.12625864,76855.0,76854.0,0.221197]
[1744143268899,0.015,76858.0,76857.0,0.222189]
[1744143269325,0.01,76858.0,76857.0,0.221189]
[1744143269476,0.011,76858.0,76857.0,0.222189]
[1744143269849,0.01,76858.0,76857.0,0.22379119]
[1744143270050,0.01,76858.0,76857.0,0.23678678]
[1744143270260,0.011,76858.0,76857.0,0.28248459]
[1744143270500,0.01,76858.0,76857.0,0.269489]
[1744143270717,0.016,76858.0,76857.0,0.270489]
[1744143270900,0.02,76858.0,76857.0,0.270489]
[1744143271279,0.02,76858.0,76857.0,0.28348459]
[1744143271660,0.02,76858.0,76857.0,0.40974323]
[1744143272313,0.02,76858.0,76857.0,0.28348459]
[1744143272818,0.01,76858.0,76857.0,0.28248459]
[1744143272993,0.015,76858.0,76857.0,0.28248459]
[1744143273583,0.012,76858.0,76857.0,0.28248459]
[1744143274001,0.014,76858.0,76857.0,0.28248459]
[1744143274420,0.014,76858.0,76857.0,0.23418459]
[1744143276115,0.221146,76872.0,76866.0,0.221161]
[1744143276299,0.208144,76870.0,76867.0,0.208151]
[1744143276502,0.208146,76869.0,76866.0,0.221162]
[1744143276899,0.208144,76870.0,76866.0,0.221162]
[1744143277165,0.208144,76870.0,76867.0,0.208151]
[1744143277377,0.208144,76870.0,76866.0,0.221162]
[1744143277555,0.001,76869.0,76866.0,0.222162]
[1744143278138,0.001,76869.0,76867.0,0.20815]
[1744143278805,0.001,76869.0,76868.0,0.208149]
[1744143279145,0.001,76869.0,76867.0,0.20915]
[1744143279347,0.001,76869.0,76867.0,0.001]
[1744143279348,0.209146,76869.0,76867.0,0.001]
[1744143279531,0.001,76869.0,76867.0,0.001]
[1744143279732,0.20811,76883.0,76876.0,0.013007]
[1744143280002,0.187766,76884.0,76877.0,0.221128]
[1744143280191,0.208119,76879.0,76876.0,0.208127]
[1744143280497,0.208121,76878.0,76874.0,0.208132]
[1744143280648,0.221126,76879.0,76876.0,0.208126]
[1744143281033,0.208114,76881.0,76878.0,0.20812]
[1744143281202,0.208114,76881.0,76876.0,0.013007]
[1744143281203,0.208121,76879.0,76877.0,0.001]
[1744143281909,0.208116,76880.0,76877.0,0.001]
[1744143282315,0.208119,76879.0,76877.0,0.001]
[1744143282656,0.208119,76879.0,76876.0,0.209122]
[1744143282862,0.008,76880.0,76879.0,0.208119]
[1744143282998,0.208095,76888.0,76883.0,0.208106]
[1744143283202,0.33435564,76887.0,76883.0,0.208106]
[1744143283420,0.208102,76886.0,76883.0,0.208106]
[1744143283621,0.208105,76885.0,76881.0,0.208113]
[1744143283802,0.221106,76886.0,76883.0,0.208107]
[1744143283989,0.2081,76886.0,76883.0,0.208107]
[1744143284185,0.33435664,76887.0,76883.0,0.209107]
[1744143284406,0.221109,76885.0,76883.0,0.002]
[1744143284607,0.208103,76885.0,76883.0,0.002]
[1744143284939,0.34736964,76884.0,76883.0,0.002]
[1744143285531,0.34736964,76884.0,76883.0,0.001]
[1744143285928,0.34736964,76884.0,76883.0,0.002]
[1744143286146,0.74861049,76884.0,76883.0,0.002]
[1744143286364,0.74861049,76884.0,76883.0,0.003]
[1744143286570,0.208135,76874.0,76870.0,0.208141]
[1744143286871,0.12625864,76873.0,76872.0,0.208138]
[1744143287939,0.12625864,76873.0,76872.0,0.221146]
[1744143288498,0.013009,76867.0,76858.0,0.013011]
[1744143288710,0.208158,76865.0,76862.0,0.208164]
[1744143288854,0.208154,76866.0,76863.0,0.208161]
[1744143289087,0.208155,76866.0,76863.0,0.208161]
[1744143290262,0.208157,76865.0,76863.0,0.208161]
[1744143291014,0.208159,76864.0,76861.0,0.208167]
[1744143291213,0.226164,76866.0,76861.0,0.01301]
[1744143291214,0.208156,76866.0,76861.0,0.01301]
[1744143291547,0.208157,76865.0,76862.0,0.208163]
[1744143291697,0.208162,76864.0,76862.0,0.208164]
[1744143292101,0.34742364,76866.0,76863.0,0.208161]
[1744143292323,0.208157,76865.0,76862.0,0.208164]
[1744143292522,0.208157,76865.0,76863.0,0.208161]
[1744143292729,0.33441464,76866.0,76863.0,0.208161]
[1744143293223,0.005,76865.0,76863.0,0.208161]
[1744143293996,0.33441364,76866.0,76863.0,0.208161]
[1744143294345,0.33441364,76866.0,76863.0,0.208162]
[1744143294504,0.12625864,76866.0,76864.0,0.208158]
[1744143294704,0.13125864,76866.0,76865.0,0.013009]
[1744143294906,0.13125864,76866.0,76865.0,0.221166]
[1744143296150,0.005,76866.0,76865.0,0.221166]
[1744143296308,0.013008,76873.0,76870.0,0.208142]
[1744143296511,0.12625864,76872.0,76870.0,0.208142]
[1744143297198,0.12625864,76872.0,76867.0,0.013009]
[1744143297335,0.12625864,76872.0,76869.0,0.208145]
[1744143297729,0.12625864,76872.0,76870.0,0.001]
[1744143297935,0.12625864,76872.0,76870.0,0.209141]
[1744143298357,0.12625864,76872.0,76868.0,0.013009]
[1744143298558,0.12625864,76872.0,76867.0,0.22116]
[1744143298559,0.208143,76870.0,76867.0,0.22116]
[1744143298760,0.208142,76871.0,76868.0,0.208148]
[1744143299122,0.208142,76871.0,76867.0,0.013009]
[1744143299329,0.208142,76871.0,76867.0,0.0097758]
[1744143299330,0.208145,76870.0,76867.0,0.0097758]
[1744143299628,0.208142,76871.0,76868.0,0.208148]
[1744143299830,0.013009,76869.0,76865.0,0.208154]
[1744143300161,0.12625864,76868.0,76866.0,0.208153]
[1744143300328,0.013009,76865.0,76861.0,0.01299559]
[1744143300531,0.013009,76865.0,76846.0,0.0483]
[1744143300532,0.208178,76857.0,76853.0,0.01299559]
[1744143300775,0.20817,76860.0,76854.0,0.221196]
[1744143300978,0.007,76871.0,76868.0,0.001]
[1744143301191,0.12625864,76870.0,76869.0,0.208146]
[1744143301595,0.12625864,76870.0,76869.0,0.221155]
[1744143301935,0.548133,76874.0,76871.0,0.221146]
[1744143302141,0.12625864,76873.0,76871.0,0.208138]
[1744143302337,0.33439364,76873.0,76869.0,0.221155]
[1744143302562,0.12625864,76873.0,76870.0,0.208142]
[1744143302923,0.12625864,76873.0,76872.0,0.221146]
[1744143303292,0.187405,76890.0,76886.0,0.2081]
[1744143303446,0.34,76886.0,76885.0,0.208102]
[1744143303656,0.0004,76889.0,76888.0,0.013005]
[1744143303852,0.0004,76889.0,76888.0,0.23409459]
[1744143304083,0.0004,76889.0,76888.0,0.28149459]
[1744143304666,0.0004,76889.0,76888.0,0.4176464]
[1744143304886,0.0004,76889.0,76888.0,0.81465783]
[1744143304887,1e-06,76889.0,76888.0,0.81465783]
[1744143305206,1e-06,76889.0,76888.0,0.83893049]
[1744143305562,0.11590534,76912.0,76911.0,0.221034]
[1744143305771,0.11590534,76912.0,76911.0,0.23402959]
[1744143306153,0.11590534,76912.0,76911.0,0.01299559]
[1744143306530,0.11590534,76912.0,76911.0,0.02599759]
[1744143306951,0.11590534,76912.0,76911.0,0.02699759]
[1744143307401,0.11590534,76912.0,76911.0,0.01399559]
[1744143307596,0.11590534,76912.0,76911.0,0.001]
[1744143308133,0.221034,76911.0,76906.0,0.01299559]
[1744143308330,0.208032,76911.0,76906.0,0.22104059]
[1744143308603,0.013002,76907.0,76906.0,0.00961871]
[1744143308831,0.013004,76899.0,76888.0,0.0474]
[1744143309051,0.013004,76894.0,76888.0,0.208094]
[1744143309447,0.013003,76900.0,76889.0,0.013005]
[1744143309649,0.013004,76896.0,76888.0,0.221099]
[1744143309806,0.208079,76894.0,76889.0,0.208091]
[1744143310011,0.208077,76895.0,76890.0,0.013005]
[1744143310210,0.208069,76898.0,76892.0,0.208083]
[1744143310395,0.208071,76897.0,76890.0,0.013005]
[1744143310596,0.208057,76902.0,76898.0,0.013004]
[1744143310803,0.12625864,76901.0,76899.0,0.208064]
[1744143311050,0.013002,76910.0,76903.0,0.208053]
[1744143311256,0.208044,76907.0,76903.0,0.208053]
[1744143311455,0.013003,76900.0,76891.0,0.013005]
[1744143311660,0.208079,76894.0,76892.0,0.001]
[1744143311897,0.221071,76899.0,76895.0,0.208075]
[1744143312100,0.208059,76902.0,76895.0,0.208075]
[1744143312259,0.208062,76900.0,76897.0,0.208069]
[1744143312742,0.208043,76907.0,76904.0,0.208051]
[1744143312937,0.33430464,76906.0,76902.0,0.221058]
[1744143313291,0.208052,76904.0,76902.0,0.00954746]
[1744143313454,0.208049,76905.0,76902.0,0.21760346]
[1744143313666,0.208057,76902.0,76900.0,0.01299559]
[1744143313865,0.013003,76901.0,76897.0,0.208069]
[1744143314064,0.208074,76896.0,76894.0,0.01299559]
[1744143314292,0.013004,76898.0,76894.0,0.01299559]
[1744143314696,0.20807,76897.0,76894.0,0.01299559]
[1744143314901,0.12625864,76901.0,76899.0,0.208064]
[1744143315100,0.013002,76911.0,76906.0,0.013002]
[1744143315327,0.12625864,76911.0,76908.0,0.208039]
[1744143315877,0.33429064,76911.0,76908.0,0.208039]
[1744143316075,0.12625864,76911.0,76909.0,0.208036]
[1744143316331,0.17432,76917.0,76913.0,0.013001]
[1744143316573,0.12625864,76916.0,76914.0,0.208022]
[1744143316813,0.208027,76913.0,76910.0,0.208035]
[1744143317010,0.013001,76914.0,76907.0,0.013002]
[1744143317152,0.221025,76914.0,76908.0,0.013002]
[1744143317356,0.22103,76912.0,76907.0,0.013002]
[1744143317574,0.013001,76912.0,76907.0,0.013002]
[1744143317775,0.208035,76910.0,76907.0,0.221045]
[1744143318464,0.013003,76901.0,76894.0,0.02254403]
[1744143318653,0.013003,76902.0,76897.0,0.013004]
[1744143318853,0.221079,76895.0,76894.0,0.02254403]
[1744143319094,0.221079,76895.0,76894.0,0.00954844]
[1744143319301,0.221079,76895.0,76887.0,0.013006]
[1744143319302,0.208086,76891.0,76888.0,0.208092]
[1744143319609,0.013004,76895.0,76890.0,0.208089]
[1744143319819,0.013004,76894.0,76887.0,0.221101]
[1744143320025,0.221123,76880.0,76875.0,0.013008]
[1744143320183,0.013006,76882.0,76874.0,0.013008]
[1744143320381,0.208113,76881.0,76877.0,0.208123]
[1744143320609,0.013006,76883.0,76878.0,0.013007]
[1744143320807,0.208111,76882.0,76878.0,0.221128]
[1744143321618,0.23437195,76886.0,76881.0,0.013007]
[1744143321782,0.208109,76883.0,76880.0,0.208116]
[1744143321992,0.2081,76887.0,76883.0,0.208108]
[1744143322191,0.208075,76896.0,76886.0,0.013006]
[1744143322455,0.12625864,76895.0,76894.0,0.208078]
[1744143322624,0.12625864,76895.0,76891.0,0.013005]
[1744143322839,0.208078,76894.0,76891.0,0.208086]
[1744143323084,0.12625864,76894.0,76893.0,0.208081]
[1744143323222,0.12625864,76894.0,76893.0,0.221086]
[1744143323428,0.17432,76899.0,76898.0,0.221071]
[1744143323628,0.17432,76899.0,76898.0,0.208067]
[1744143323946,0.17432,76899.0,76898.0,0.221071]
[1744143324144,0.221067,76900.0,76895.0,0.208073]
[1744143324346,0.208065,76899.0,76896.0,0.208072]
[1744143324549,0.013002,76908.0,76902.0,0.208054]
[1744143324728,0.208049,76905.0,76901.0,0.221062]
[1744143324927,0.208073,76896.0,76895.0,0.00993982]
[1744143325235,0.20807,76897.0,76894.0,0.208076]
[1744143325836,0.208075,76896.0,76894.0,0.208078]
[1744143326373,0.005,76899.0,76896.0,0.221077]
[1744143326572,0.005,76899.0,76898.0,0.221071]
[1744143327097,0.20806,76901.0,76898.0,0.221071]
[1744143327382,0.208061,76901.0,76898.0,0.221071]
[1744143327575,0.013004,76899.0,76894.0,0.013004]
[1744143327798,0.208065,76899.0,76896.0,0.208072]
[1744143328189,0.208065,76900.0,76897.0,0.208069]
[1744143328653,0.004,76901.0,76898.0,0.013004]
[1744143328899,0.17396,76917.0,76900.0,0.253062]
[1744143329151,0.0004,76919.0,76918.0,0.221013]
[1744143329849,0.0004,76919.0,76918.0,0.208013]
[1744143330064,0.0004,76919.0,76918.0,0.221013]
[1744143331516,0.0064,76919.0,76918.0,0.222013]
[1744143332442,0.0064,76919.0,76918.0,0.23274877]
[1744143332908,0.227411,76919.0,76918.0,0.01073577]
[1744143333598,0.14459858,76920.0,76918.0,0.01073577]
[1744143333765,0.013,76919.0,76918.0,0.01073577]
[1744143334171,0.221011,76919.0,76918.0,0.01073577]
[1744143334635,0.221025,76914.0,76913.0,0.02422935]
[1744143334859,0.34728364,76914.0,76913.0,0.02422935]
[1744143335109,0.208036,76910.0,76906.0,0.01211276]
[1744143335347,0.208038,76909.0,76904.0,0.208049]
[1744143335561,0.208043,76908.0,76904.0,0.208049]
[1744143335783,0.208038,76909.0,76905.0,0.208047]
[1744143336074,0.208038,76909.0,76905.0,0.208048]
[1744143336427,0.208035,76910.0,76906.0,0.208046]
[1744143336623,0.22071424,76928.0,76917.0,0.013001]
[1744143336859,0.22071224,76928.0,76919.0,0.221011]
[1744143337071,0.207991,76927.0,76921.0,0.208003]
[1744143337277,0.12625864,76926.0,76923.0,0.207997]
[1744143337859,0.01272524,76928.0,76923.0,0.013]
[1744143338051,0.415858,76950.0,76935.0,0.012997]
[1744143338052,0.207949,76942.0,76935.0,0.012997]
[1744143338252,0.12625864,76941.0,76938.0,0.207959]
[1744143338480,0.12625864,76941.0,76940.0,0.207954]
[1744143338678,0.0004,76949.0,76943.0,0.22094]
[1744143338886,0.34,76947.0,76932.0,0.012998]
[1744143339034,0.220951,76940.0,76936.0,0.207964]
[1744143339241,0.12625864,76939.0,76938.0,0.207959]
[1744143339493,0.12625864,76939.0,76938.0,0.220956]
[1744143339993,0.34,76944.0,76938.0,0.012997]
[1744143340206,0.12625864,76944.0,76941.0,0.012996]
[1744143340421,0.12625864,76944.0,76942.0,0.220944]
[1744143340669,0.0004,76949.0,76948.0,0.012995]
[1744143341621,0.12665864,76949.0,76948.0,0.00979262]
[1744143342147,0.12665864,76949.0,76948.0,0.012995]
[1744143342148,0.0004,76949.0,76948.0,0.012995]
[1744143342367,0.0004,76949.0,76947.0,0.207934]
[1744143342521,0.0004,76949.0,76948.0,0.012995]